bitfinex-derivatives/quotes_ETHF0:USTF0_20240927
["timestamp","ask_amount","ask_price","bid_price","bid_amount"]
[1727413368335,1.6089,2645.7,2645.4,1.87501026]
[1727413368537,0.37793,2645.6,2645.4,1.87501026]
[1727413369037,0.37793,2645.6,2645.4,0.3881]
[1727413369244,0.37793,2645.6,2645.4,1.87501026]
[1727413370043,0.37793,2645.6,2645.5,0.99042808]
[1727413370237,0.37793,2645.6,2645.4,0.3881]
[1727413370437,0.37793,2645.6,2645.4,1.87501026]
[1727413371036,0.37793,2645.6,2645.5,1.81240403]
[1727413371238,0.37793,2645.6,2645.4,1.87501026]
[1727413371441,0.37793,2645.6,2645.5,1.81268966]
[1727413374043,0.37793,2645.6,2645.4,1.87501026]
[1727413374242,0.37793,2645.6,2645.5,1.81317723]
[1727413374646,0.37793,2645.6,2645.4,1.87501026]
[1727413374947,0.37793,2645.6,2645.5,1.81345038]
[1727413376340,0.37793,2645.6,2645.5,3.30036064]
[1727413376548,1.203,2645.7,2645.5,3.30036064]
[1727413376848,1.58091,2645.7,2645.6,2.59569973]
[1727413377049,1.58091,2645.7,2645.6,2.5957027]
[1727413377247,1.58091,2645.7,2645.6,0.782]
[1727413378347,1.203,2645.7,2645.6,0.782]
[1727413378547,1.203,2645.7,2645.6,2.59599295]
[1727413378748,0.3779,2645.8,2645.6,2.59599295]
[1727413379047,0.3779,2645.8,2645.7,0.99118082]
[1727413379247,0.3779,2645.8,2645.7,1.36528082]
[1727413379448,0.3779,2645.8,2645.7,3.67493925]
[1727413379652,0.3779,2645.8,2645.7,2.18802899]
[1727413379855,0.3779,2645.8,2645.7,1.36524678]
[1727413380249,0.3779,2645.9,2645.7,1.36524678]
[1727413380455,1.202,2646.0,2645.7,1.36524678]
[1727413380749,0.3779,2645.8,2645.7,1.36524678]
[1727413381144,0.37789,2645.9,2645.7,1.36524678]
[1727413381558,0.3779,2645.8,2645.7,1.36524678]
[1727413382950,1.202,2646.0,2645.7,0.3741]
[1727413382951,0.37789,2645.9,2645.7,0.3741]
[1727413383146,0.3779,2645.8,2645.7,1.36524678]
[1727413383355,0.37789,2645.9,2645.7,1.36524678]
[1727413383551,0.37787,2646.0,2645.8,0.99114678]
[1727413383856,3.58566,2646.1,2645.9,0.99114678]
[1727413384053,3.58566,2646.1,2646.0,1.1579]
[1727413387156,3.58566,2646.1,2646.0,2.14904678]
[1727413394361,0.37783,2646.3,2646.0,2.14904678]
[1727413394764,0.37784,2646.2,2646.1,0.99114678]
[1727413394965,0.37785,2646.1,2646.0,1.1579]
[1727413395567,1.5749,2646.4,2646.0,1.1579]
[1727413396565,0.37785,2646.2,2646.0,1.1579]
[1727413396755,0.37785,2646.2,2646.0,2.14904678]
[1727413397059,0.37785,2646.2,2646.0,1.1579]
[1727413397258,0.37785,2646.2,2646.0,2.14904678]
[1727413397763,0.37783,2646.3,2646.0,2.14904678]
[1727413399065,0.37779,2646.6,2646.1,0.99114678]
[1727413399266,0.3778,2646.5,2646.2,4.19894678]
[1727413399559,0.37781,2646.4,2646.3,0.3947]
[1727413401764,0.37779,2646.6,2646.3,0.3947]
[1727413401960,0.37779,2646.6,2646.4,0.7771]
[1727413402563,0.37779,2646.6,2646.4,1.76824678]
[1727413402869,1.57977,2646.7,2646.4,1.76824678]
[1727413403066,1.202,2646.7,2646.4,1.76824678]
[1727413403271,0.37777,2646.7,2646.4,0.7771]
[1727413403570,0.37777,2646.7,2646.4,1.76824678]
[1727413404270,0.37777,2646.7,2646.4,0.7771]
[1727413405166,0.37778,2646.6,2646.4,0.7771]
[1727413406069,0.3778,2646.5,2646.4,0.7771]
[1727413406264,0.783,2646.5,2646.4,0.7771]
[1727413406662,0.37779,2646.6,2646.4,0.7771]
[1727413408276,0.37777,2646.7,2646.4,0.7771]
[1727413408576,0.37779,2646.6,2646.4,0.7771]
[1727413409773,5.5544,2646.9,2646.4,0.7771]
[1727413409975,0.37777,2646.8,2646.4,0.7771]
[1727413410177,5.1804,2646.9,2646.4,0.7771]
[1727413410366,0.37776,2646.8,2646.4,0.7771]
[1727413410771,0.37777,2646.7,2646.4,0.7771]
[1727413411471,3.2078,2646.9,2646.4,0.7771]
[1727413411673,0.37777,2646.7,2646.5,3.2078]
[1727413411873,0.37777,2646.7,2646.6,0.3977]
[1727413413270,0.37776,2646.8,2646.6,0.3977]
[1727413413672,2.0892,2647.1,2646.6,0.3977]
[1727413413875,3.2912,2647.1,2646.6,0.3977]
[1727413414278,0.37776,2646.8,2646.6,0.3977]
[1727413415571,3.2912,2647.1,2646.6,0.3977]
[1727413415775,0.37776,2646.8,2646.6,0.3977]
[1727413416083,0.37777,2646.7,2646.6,0.3977]
[1727413416373,3.2912,2647.1,2646.6,0.3977]
[1727413416374,0.37776,2646.8,2646.6,0.3977]
[1727413416773,6.499,2647.1,2646.6,0.3977]
[1727413416774,0.37777,2646.7,2646.6,0.3977]
[1727413420480,0.3778,2646.5,2646.4,0.7771]
[1727413420780,0.37781,2646.4,2646.3,0.4035]
[1727413421580,0.37784,2646.2,2646.1,0.8123]
[1727413421979,0.3904,2646.5,2646.1,0.8123]
[1727413422184,0.37784,2646.2,2646.1,0.8123]
[1727413422383,0.3904,2646.5,2646.1,0.8123]
[1727413422384,0.37783,2646.3,2646.1,0.8123]
[1727413422682,0.37784,2646.2,2646.1,0.8123]
[1727413424587,0.37785,2646.1,2646.0,0.4035]
[1727413428181,0.37784,2646.2,2646.0,0.4035]
[1727413428382,0.37784,2646.2,2646.1,0.3862]
[1727413429490,1.58883,2646.3,2646.1,0.3862]
[1727413429687,0.37783,2646.3,2646.1,0.3862]
[1727413429993,0.37784,2646.2,2646.1,0.3862]
[1727413431095,0.37783,2646.3,2646.1,0.3862]
[1727413431689,1.211,2646.4,2646.1,0.3862]
[1727413431690,1.58882,2646.4,2646.1,0.3862]
[1727413431887,0.3778,2646.5,2646.1,4.58514678]
[1727413432087,0.3778,2646.5,2646.1,0.3862]
[1727413432788,0.37781,2646.4,2646.1,0.3862]
[1727413434902,0.37783,2646.3,2646.1,0.3862]
[1727413438098,0.37783,2646.3,2646.1,1.37734678]
[1727413438296,0.37782,2646.4,2646.1,1.37734678]
[1727413438490,0.7717,2646.6,2646.1,1.37734678]
[1727413438690,0.37783,2646.3,2646.1,1.37734678]
[1727413439093,0.37783,2646.3,2646.2,0.99114678]
[1727413443301,1.14949,2646.6,2646.2,0.99114678]
[1727413443506,1.6098,2646.7,2646.3,1.76334678]
[1727413443705,0.3778,2646.5,2646.3,1.76334678]
[1727413444001,0.3778,2646.5,2646.4,0.99114678]
[1727413447107,0.3778,2646.5,2646.3,3.98]
[1727413447604,0.3778,2646.5,2646.3,0.7722]
[1727413448607,0.37781,2646.4,2646.3,0.7722]
[1727413449409,0.3778,2646.5,2646.3,0.7722]
[1727413450302,0.37781,2646.4,2646.3,0.7722]
[1727413451499,0.37781,2646.4,2646.3,4.5506]
[1727413453215,0.37781,2646.4,2646.3,0.7722]
[1727413453910,0.37781,2646.4,2646.3,0.3975]
[1727413454113,0.37784,2646.2,2646.1,1.87311026]
[1727413454306,0.37784,2646.2,2646.1,3.68500189]
[1727413454506,0.37783,2646.3,2646.1,3.68500189]
[1727413454709,0.37784,2646.2,2646.1,1.87311026]
[1727413455004,0.37784,2646.2,2646.1,3.68499591]
[1727413456619,0.37784,2646.2,2646.1,2.19808565]
[1727413457717,0.37784,2646.2,2646.1,3.68499591]
[1727413458214,0.37784,2646.2,2646.1,2.19808565]
[1727413458916,0.37784,2646.2,2646.1,3.68499591]
[1727413460114,0.3962,2646.5,2646.1,3.68499591]
[1727413460315,0.37783,2646.3,2646.2,1.81188565]
[1727413461518,0.37783,2646.3,2646.2,3.29879591]
[1727413463626,0.37783,2646.3,2646.2,3.29782788]
[1727413463815,0.37783,2646.3,2646.2,3.29782326]
[1727413464625,0.37783,2646.3,2646.2,1.81188565]
[1727413464818,0.37783,2646.3,2646.2,3.29782326]
[1727413466232,0.37783,2646.3,2646.2,1.81188565]
[1727413467035,0.37783,2646.3,2646.2,1.81401871]
[1727413469337,0.37783,2646.3,2646.2,0.99110284]
[1727413469928,0.37782,2646.4,2646.2,4.77030284]
[1727413470125,0.37782,2646.4,2646.3,0.4004]
[1727413472540,0.3893,2646.6,2646.3,0.4004]
[1727413472742,0.37779,2646.6,2646.4,0.4098]
[1727413472942,0.37779,2646.6,2646.5,0.3895]
[1727413473834,0.37781,2646.4,2646.3,1.39150284]
[1727413476042,0.37781,2646.4,2646.3,0.4004]
[1727413476542,0.37781,2646.4,2646.3,0.7773]
[1727413476744,0.37781,2646.4,2646.3,4.5557]
[1727413476946,0.37781,2646.4,2646.3,2.59552363]
[1727413477242,0.37781,2646.4,2646.3,2.5957933]
[1727413477631,0.37781,2646.4,2646.3,2.59579617]
[1727413477839,0.37781,2646.4,2646.3,4.08349625]
[1727413478039,0.37781,2646.4,2646.3,2.59579617]
[1727413479032,0.3778,2646.6,2646.3,6.37419617]
[1727413479239,0.4027,2646.7,2646.4,3.68642464]
[1727413479442,0.37778,2646.6,2646.5,3.30622464]
[1727413479641,0.4027,2646.7,2646.5,3.30622464]
[1727413479842,0.37778,2646.6,2646.5,1.48772847]
[1727413480052,0.37778,2646.6,2646.5,3.30620053]
[1727413480547,0.37778,2646.6,2646.5,1.81847206]
[1727413481049,0.37778,2646.6,2646.5,3.30620053]
[1727413481746,0.4027,2646.7,2646.5,3.30620053]
[1727413481747,0.37778,2646.7,2646.5,3.30620053]
[1727413481942,0.37778,2646.7,2646.6,1.81839944]
[1727413482141,0.37778,2646.6,2646.5,1.48772847]
[1727413482340,0.37778,2646.6,2646.5,3.30613058]
[1727413482749,0.37778,2646.6,2646.5,1.81840211]
[1727413483041,0.37778,2646.6,2646.5,3.30613058]
[1727413483242,0.37778,2646.6,2646.5,1.81840211]
[1727413483437,0.37778,2646.6,2646.5,3.30613058]
[1727413484248,0.37778,2646.6,2646.4,1.37191139]
[1727413484449,0.3778,2646.5,2646.4,1.37191139]
[1727413484950,0.3778,2646.5,2646.4,5.15031139]
[1727413486052,0.3778,2646.5,2646.4,1.37191139]
[1727413486946,0.37779,2646.6,2646.4,4.1586]
[1727413487143,0.37779,2646.6,2646.4,1.37191139]
[1727413487651,0.3778,2646.5,2646.4,1.37191139]
[1727413487851,0.37779,2646.6,2646.4,1.37191139]
[1727413488152,3.5933,2646.9,2646.4,5.15031139]
[1727413488153,0.37775,2646.9,2646.4,5.15031139]
[1727413488445,0.37774,2646.9,2646.7,0.99171139]
[1727413488747,0.37773,2647.0,2646.8,0.7626]
[1727413488960,0.37773,2647.0,2646.8,1.75431139]
[1727413489148,0.37773,2647.0,2646.8,0.7626]
[1727413489344,0.37773,2647.0,2646.8,1.75431139]
[1727413489548,0.37765,2647.6,2647.0,0.37772]
[1727413489749,0.37765,2647.6,2646.9,3.7784]
[1727413489750,0.37765,2647.6,2647.1,0.99171139]
[1727413489948,0.37765,2647.6,2647.2,1.76641139]
[1727413490145,1.55474,2647.7,2647.2,4.97421139]
[1727413490344,3.48976157,2647.8,2647.3,0.99171139]
[1727413490647,0.3776,2647.9,2647.5,4.19951139]
[1727413491253,0.3776,2647.9,2647.5,3.2078]
[1727413491553,4.078,2648.1,2647.6,3.7768]
[1727413491753,3.2078,2648.3,2647.9,3.2078]
[1727413491754,0.37756,2648.2,2647.9,3.2078]
[1727413491965,3.2078,2648.3,2647.9,3.2078]
[1727413492355,3.2078,2648.3,2648.0,3.776]
[1727413492659,4.078,2648.6,2648.0,4.76771139]
[1727413492859,4.4555,2648.6,2648.0,0.99171139]
[1727413493157,4.4555,2648.6,2647.9,4.19951139]
[1727413493346,0.37749,2648.7,2647.9,4.19951139]
[1727413493555,0.37749,2648.7,2648.2,3.2078]
[1727413493861,3.2078,2648.8,2648.3,0.7867]
[1727413494065,0.37749,2648.7,2648.3,0.7867]
[1727413494855,0.3775,2648.6,2648.3,0.7867]
[1727413495356,0.3775,2648.6,2648.4,3.776]
[1727413495760,0.3775,2648.6,2648.5,3.776]
[1727413496060,0.3775,2648.6,2648.3,4.5627]
[1727413496256,3.2078,2648.8,2648.3,4.5627]
[1727413496562,0.3775,2648.6,2648.3,0.7867]
[1727413497067,0.3775,2648.6,2648.3,4.5627]
[1727413497364,0.37751,2648.5,2648.3,4.5627]
[1727413497661,0.37751,2648.5,2648.3,0.7867]
[1727413497862,0.37751,2648.5,2648.4,3.776]
[1727413498959,0.37751,2648.5,2648.4,4.1771]
[1727413501551,3.2078,2648.9,2648.4,4.1771]
[1727413501757,0.37743,2649.1,2648.6,0.37749]
[1727413501965,0.4043,2649.3,2648.9,3.2078]
[1727413502156,0.4043,2649.3,2648.4,4.9850589]
[1727413502157,0.4043,2649.3,2649.0,0.4079]
[1727413502358,0.37739,2649.4,2649.0,0.4079]
[1727413502658,0.37739,2649.4,2649.1,0.3723]
[1727413502857,0.4013,2649.6,2649.1,0.3723]
[1727413502858,0.3774,2649.3,2649.1,0.3723]
[1727413503257,0.3774,2649.3,2649.2,3.7744]
[1727413503756,0.37739,2649.4,2649.2,3.7744]
[1727413503962,0.37739,2649.4,2649.1,0.3723]
[1727413504656,0.3774,2649.3,2649.1,0.3723]
[1727413504860,0.37739,2649.4,2649.2,0.3846]
[1727413505053,0.4043,2649.7,2649.2,0.3846]
[1727413505257,0.37738,2649.4,2649.2,0.3846]
[1727413505464,0.3878,2649.9,2649.3,3.2078]
[1727413505663,1.3261,2650.2,2649.3,3.58519]
[1727413505973,0.37733,2649.8,2649.6,3.2078]
[1727413507260,0.37733,2649.8,2649.7,0.4006]
[1727413508366,0.37733,2649.8,2649.7,0.7782]
[1727413509770,0.37733,2649.8,2649.7,4.5518]
[1727413512770,0.37731,2649.9,2649.7,4.5518]
[1727413512966,0.37731,2649.9,2649.7,0.7782]
[1727413513358,0.37733,2649.8,2649.7,0.7782]
[1727413513863,0.37733,2649.8,2649.7,4.5518]
[1727413514062,0.37733,2649.8,2649.7,0.7782]
[1727413514267,0.37733,2649.8,2649.7,0.4006]
[1727413514672,0.37733,2649.8,2649.7,4.1742]
[1727413515168,0.37733,2649.8,2649.7,0.4006]
[1727413515368,0.37733,2649.8,2649.6,3.2078]
[1727413515369,0.37734,2649.7,2649.6,3.2078]
[1727413515775,0.37734,2649.7,2649.6,6.9822]
[1727413517773,0.37734,2649.7,2649.6,3.2078]
[1727413520177,0.37738,2649.4,2649.3,0.4106]
[1727413521672,0.37737,2649.5,2649.3,4.185]
[1727413521882,0.3803,2649.7,2649.3,0.4106]
[1727413522277,0.37736,2649.6,2649.3,0.4106]
[1727413522577,0.75765,2649.7,2649.3,0.4106]
[1727413523077,0.37735,2649.6,2649.3,0.4106]
[1727413523382,0.75765,2649.7,2649.3,0.4106]
[1727413524078,0.75765,2649.7,2649.4,3.2078]
[1727413524581,0.37735,2649.6,2649.4,3.2078]
[1727413524781,0.75765,2649.7,2649.4,3.2078]
[1727413524983,0.37733,2649.8,2649.4,3.2078]
[1727413525285,0.37734,2649.7,2649.4,3.2078]
[1727413525685,0.37734,2649.7,2649.4,6.9822]
[1727413526278,0.37733,2649.8,2649.4,6.9822]
[1727413526479,0.37734,2649.7,2649.4,3.2078]
[1727413526778,0.37734,2649.7,2649.4,6.9822]
[1727413527086,0.37734,2649.7,2649.4,3.2078]
[1727413527381,0.37734,2649.8,2649.4,3.2078]
[1727413527588,0.37734,2649.7,2649.4,3.2078]
[1727413527784,0.37734,2649.8,2649.4,3.2078]
[1727413528698,0.7835,2650.0,2649.4,3.2078]
[1727413529075,0.37734,2649.8,2649.4,3.2078]
[1727413529483,0.37734,2649.7,2649.4,3.2078]
[1727413531089,0.7835,2650.0,2649.4,3.2078]
[1727413531090,0.37736,2649.6,2649.4,3.2078]
[1727413531290,0.37735,2649.7,2649.4,3.2078]
[1727413533179,0.37735,2649.6,2649.4,3.2078]
[1727413533380,0.7835,2650.0,2649.4,3.2078]
[1727413534088,0.37735,2649.7,2649.4,3.2078]
[1727413535991,0.37736,2649.6,2649.4,3.2078]
[1727413536489,0.37735,2649.7,2649.5,3.7744]
[1727413536687,0.37735,2649.7,2649.6,0.4104]
[1727413542185,0.7835,2650.0,2649.6,0.4104]
[1727413542585,0.37734,2649.7,2649.6,0.4104]
[1727413545184,0.37734,2649.7,2649.6,0.8013]
[1727413545988,0.7835,2650.0,2649.6,0.8013]
[1727413546194,0.37734,2649.7,2649.6,0.8013]
[1727413547589,0.37734,2649.7,2649.6,1.79301139]
[1727413548597,0.37734,2649.7,2649.6,0.8013]
[1727413548887,0.7835,2650.0,2649.6,0.8013]
[1727413549094,0.37733,2649.8,2649.7,0.98834142]
[1727413549694,0.37733,2649.8,2649.7,1.38574142]
[1727413550490,0.37733,2649.8,2649.7,0.3974]
[1727413550686,0.37733,2649.8,2649.7,1.38607665]
[1727413550991,0.37733,2649.8,2649.7,0.3974]
[1727413553602,0.37733,2649.8,2649.7,1.38586768]
[1727413553897,0.37733,2649.8,2649.7,2.16993612]
[1727413554097,0.37733,2649.8,2649.7,0.3974]
[1727413554299,0.7835,2650.0,2649.7,2.16986598]
[1727413554601,0.37731,2649.9,2649.8,0.98833308]
[1727413558003,0.37733,2649.8,2649.7,0.3974]
[1727413558894,0.37733,2649.8,2649.7,2.16943138]
[1727413559694,0.37732,2649.9,2649.7,0.3974]
[1727413560395,0.37733,2649.8,2649.7,0.3974]
[1727413563798,0.8071,2650.0,2649.7,0.3974]
[1727413564000,0.37731,2649.9,2649.7,0.3974]
[1727413564200,0.37733,2649.8,2649.7,0.3974]
[1727413566794,0.37733,2649.8,2649.7,0.9884374]
[1727413567002,0.37733,2649.8,2649.6,0.9884374]
[1727413567003,1.3207,2649.7,2649.6,0.9884374]
[1727413567201,1.719,2649.7,2649.6,0.9884374]
[1727413567902,0.37735,2649.6,2649.5,0.9884374]
[1727413568111,1.16995,2649.6,2649.5,0.9884374]
[1727413568804,10.94435,2649.6,2649.5,0.9884374]
[1727413569106,0.37737,2649.5,2649.4,0.9884374]
[1727413569408,0.37738,2649.4,2649.3,0.9884374]
[1727413569809,4.15178,2649.4,2649.3,0.9884374]
[1727413570404,0.3774,2649.3,2649.2,0.9884374]
[1727413570709,0.3774,2649.3,2649.1,0.9884374]
[1727413570710,0.37741,2649.2,2649.1,0.9884374]
[1727413571006,0.76031,2649.2,2649.1,0.9884374]
[1727413571211,1.16621,2649.2,2649.1,0.9884374]
[1727413571605,0.37743,2649.1,2649.0,0.9884374]
[1727413571903,0.37743,2649.1,2648.7,3.2078]
[1727413571904,0.37744,2649.0,2648.9,0.9884374]
[1727413572307,4.15264,2649.0,2648.9,0.9884374]
[1727413572505,0.37745,2648.9,2648.8,0.9884374]
[1727413573104,1.73233,2649.2,2648.7,1.48772847]
[1727413573410,0.37745,2648.9,2648.8,0.98804262]
[1727413574812,0.37748,2648.8,2648.6,1.73764262]
[1727413575011,0.37748,2648.7,2648.6,1.73764262]
[1727413575510,0.37748,2648.7,2648.6,0.7496]
[1727413575705,0.37748,2648.7,2648.6,1.73764262]
[1727413576417,0.37748,2648.7,2648.6,0.7496]
[1727413577007,0.37747,2648.8,2648.6,0.7496]
[1727413577213,0.37748,2648.7,2648.6,0.7496]
[1727413581811,0.3775,2648.6,2648.5,1.39674262]
[1727413582010,0.3775,2648.6,2648.5,1.78484262]
[1727413582411,0.3775,2648.6,2648.5,0.7968]
[1727413585113,1.35049,2648.8,2648.4,3.5829]
[1727413585114,0.37751,2648.5,2648.4,3.5829]
[1727413585312,0.37751,2648.5,2648.4,3.2078]
[1727413585912,5.09729,2648.5,2648.4,3.2078]
[1727413586119,0.37757,2648.1,2648.0,0.3902]
[1727413586322,0.37757,2648.1,2648.0,0.7907]
[1727413586625,0.37756,2648.2,2648.0,0.7907]
[1727413587117,0.7951,2648.4,2648.0,0.7907]
[1727413588423,0.37754,2648.3,2648.0,0.7907]
[1727413589429,0.37756,2648.2,2648.0,0.7907]
[1727413590136,0.7951,2648.4,2648.0,0.7907]
[1727413590332,0.37756,2648.2,2648.0,0.7907]
[1727413591032,0.37755,2648.3,2648.0,3.9985]
[1727413591227,0.37755,2648.2,2648.0,3.9985]
[1727413591632,0.37757,2648.1,2648.0,3.9985]
[1727413592037,0.37756,2648.2,2648.0,3.9985]
[1727413593632,3.2078,2648.5,2648.0,4.37608]
[1727413593833,0.37752,2648.5,2648.0,4.37607]
[1727413594235,0.386,2648.6,2648.0,4.37607]
[1727413594539,0.386,2648.6,2648.2,3.2078]
[1727413594737,7.2858,2648.9,2648.3,0.407]
[1727413594940,7.2858,2648.9,2648.4,0.3712]
[1727413594941,0.37751,2648.6,2648.4,0.3712]
[1727413595132,0.37751,2648.6,2648.4,0.7731]
[1727413596341,0.386,2648.8,2648.4,0.7731]
[1727413596342,0.37749,2648.7,2648.4,0.7731]
[1727413597341,0.3775,2648.6,2648.4,0.7731]
[1727413598142,0.37749,2648.7,2648.4,0.7731]
[1727413599243,0.3775,2648.6,2648.4,0.7731]
[1727413604139,0.37751,2648.5,2648.4,0.7731]
[1727413604546,0.386,2648.8,2648.4,0.7731]
[1727413604747,0.37751,2648.6,2648.4,0.7731]
[1727413604951,0.386,2648.8,2648.4,0.7731]
[1727413604952,0.37751,2648.5,2648.4,0.7731]
[1727413605945,0.3775,2648.6,2648.4,0.7731]
[1727413606643,0.37749,2648.7,2648.4,0.7731]
[1727413607246,0.3775,2648.6,2648.4,0.7731]
[1727413607848,0.386,2648.8,2648.4,0.7731]
[1727413608150,0.37749,2648.7,2648.4,0.7731]
[1727413608353,0.37751,2648.6,2648.4,0.7731]
[1727413609050,0.386,2648.8,2648.4,0.7731]
[1727413609256,0.37749,2648.7,2648.4,0.7731]
[1727413609452,0.37749,2648.7,2648.5,3.2078]
[1727413609651,0.94361,2649.0,2648.5,3.2078]
[1727413609847,0.3785,2648.9,2648.5,3.2078]
[1727413610249,0.3785,2648.9,2648.4,0.7731]
[1727413610449,0.37751,2648.6,2648.4,0.7731]
[1727413612052,0.3775,2648.6,2648.4,0.7731]
[1727413612244,0.3785,2648.9,2648.4,0.7731]
[1727413612651,0.37745,2649.0,2648.4,1.15062]
[1727413612952,0.3772,2649.2,2648.9,3.2078]
[1727413612953,0.37741,2649.2,2648.9,3.2078]
[1727413613156,0.37741,2649.2,2649.0,1.1936]
[1727413613858,0.7688,2649.5,2649.0,1.1936]
[1727413614452,0.37742,2649.2,2649.0,1.1936]
[1727413614646,0.37743,2649.1,2649.0,1.1936]
[1727413615658,0.7688,2649.5,2649.0,1.1936]
[1727413616063,0.37743,2649.1,2649.0,1.1936]
[1727413616259,0.37742,2649.2,2649.0,1.1936]
[1727413617458,0.37743,2649.1,2649.0,1.1936]
[1727413624560,9.7752,2649.1,2648.7,0.98626017]
[1727413624767,9.7752,2649.1,2648.3,2.16626017]
[1727413624768,0.94368,2648.8,2648.3,2.16626017]
[1727413624975,0.94368,2648.8,2648.3,1.18]
[1727413625165,0.37752,2648.4,2648.3,1.18]
[1727413625361,0.37754,2648.3,2648.2,0.98626017]
[1727413625569,0.18946632,2648.7,2648.1,0.98822182]
[1727413625570,0.37755,2648.2,2648.1,0.98822182]
[1727413625769,4.15148,2648.8,2648.1,0.98822182]
[1727413625770,0.37755,2648.3,2648.1,0.98822182]
[1727413625972,0.37752,2648.5,2648.1,0.98822182]
[1727413626175,0.7847,2648.6,2648.2,0.98822182]
[1727413626375,0.37751,2648.5,2648.2,0.98822182]
[1727413627167,0.37751,2648.5,2648.0,4.99942182]
[1727413627670,0.37751,2648.5,2648.3,3.2078]
[1727413627866,0.7847,2648.6,2648.4,0.8013]
[1727413628062,0.7847,2648.6,2648.4,1.1719]
[1727413629374,0.37751,2648.5,2648.4,1.1719]
[1727413630472,3.2078,2648.9,2648.4,1.1719]
[1727413630674,0.3775,2648.6,2648.4,1.1719]
[1727413631476,0.3775,2648.6,2648.4,4.3797]
[1727413631866,0.37751,2648.5,2648.4,4.3797]
[1727413632073,0.3775,2648.6,2648.4,1.1719]
[1727413632774,0.37751,2648.5,2648.4,1.1719]
[1727413633281,0.406,2648.9,2648.4,1.1719]
[1727413633879,0.37751,2648.5,2648.4,1.1719]
[1727413635369,0.406,2648.9,2648.4,1.1719]
[1727413635576,0.3775,2648.6,2648.4,1.1719]
[1727413635770,0.37751,2648.5,2648.4,1.1719]
[1727413638474,0.37754,2648.3,2648.1,4.19602182]
[1727413638678,0.37755,2648.2,2648.1,5.40262182]
[1727413638982,0.37755,2648.2,2648.1,4.4144]
[1727413640177,1.32144,2648.2,2648.1,3.2078]
[1727413640377,0.94389,2648.2,2647.8,0.98822182]
[1727413640675,0.37761,2647.8,2647.7,6.31983455]
[1727413640879,0.37761,2647.8,2647.7,8.09478726]
[1727413641181,0.37761,2647.8,2647.7,8.09713447]
[1727413641384,0.3776,2647.9,2647.7,8.09713447]
[1727413641683,0.3776,2647.9,2647.7,6.31983455]
[1727413641870,0.3776,2647.9,2647.8,0.98873455]
[1727413642177,0.3776,2647.9,2647.7,6.31983455]
[1727413643176,0.3776,2647.9,2647.7,2.18883455]
[1727413643977,0.77438,2648.1,2647.7,2.18883455]
[1727413644278,0.37758,2648.1,2647.8,0.37761]
[1727413644484,0.37758,2648.1,2647.9,3.2078]
[1727413646283,0.4032,2648.3,2647.9,3.2078]
[1727413646479,0.37758,2648.1,2647.9,3.2078]
[1727413647683,0.37756,2648.2,2647.9,3.2078]
[1727413647879,0.4032,2648.3,2647.9,3.2078]
[1727413648084,0.37757,2648.1,2647.9,3.2078]
[1727413653580,0.4032,2648.3,2647.9,3.2078]
[1727413653787,0.37755,2648.2,2647.9,3.2078]
[1727413653992,0.37755,2648.2,2647.9,3.5854]
[1727413654490,0.37755,2648.2,2647.9,3.2078]
[1727413654893,0.37757,2648.1,2647.9,3.2078]
[1727413657689,0.37758,2648.0,2647.9,3.2078]
[1727413658887,0.37757,2648.1,2647.9,3.2078]
[1727413659587,0.4032,2648.3,2647.9,3.2078]
[1727413659794,0.37757,2648.1,2647.9,3.2078]
[1727413661996,0.4032,2648.3,2647.9,3.2078]
[1727413662389,0.37758,2648.0,2647.9,3.2078]
[1727413663785,0.37757,2648.1,2647.9,3.2078]
[1727413664894,0.37758,2648.0,2647.9,3.2078]
[1727413665598,0.37757,2648.1,2647.9,3.2078]
[1727413666098,0.4032,2648.3,2647.9,3.2078]
[1727413666497,0.37757,2648.1,2647.9,3.2078]
[1727413667195,0.37758,2648.1,2647.9,3.2078]
[1727413667597,0.37758,2648.0,2647.9,3.2078]
[1727413670296,0.37758,2648.0,2647.9,4.19653455]
[1727413670696,0.37758,2648.0,2647.9,5.9762694]
[1727413670896,0.37758,2648.0,2647.9,4.19653455]
[1727413671401,0.3727,2648.2,2647.9,4.19653455]
[1727413671800,0.3727,2648.2,2647.9,4.57412455]
[1727413672002,0.4032,2648.3,2648.0,0.98873455]
[1727413672303,0.37757,2648.1,2648.0,1.47939026]
[1727413672505,0.37756,2648.2,2648.0,1.78612713]
[1727413672704,0.37756,2648.2,2648.1,3.68015316]
[1727413673109,0.37756,2648.2,2648.1,3.18515382]
[1727413673300,0.37756,2648.2,2648.1,2.19502713]
[1727413674000,0.37756,2648.2,2648.1,2.19829505]
[1727413674200,0.37756,2648.2,2648.1,3.18851205]
[1727413675105,0.37756,2648.2,2648.1,3.68342108]
[1727413676101,0.37756,2648.2,2648.1,2.19829505]
[1727413676308,0.37756,2648.2,2648.1,3.18862385]
[1727413676606,0.37756,2648.2,2648.1,2.19829505]
[1727413677003,0.37756,2648.2,2648.1,3.68342108]
[1727413677607,0.37756,2648.2,2648.1,3.18864453]
[1727413677799,0.37756,2648.2,2648.1,1.39924948]
[1727413678904,0.37756,2648.2,2648.1,3.18931172]
[1727413679102,0.37756,2648.2,2648.1,3.18927637]
[1727413679406,0.37756,2648.2,2648.1,0.4089]
[1727413680106,0.37757,2648.1,2648.0,0.99034948]
[1727413680403,4.549,2648.1,2647.7,0.99034948]
[1727413680602,0.37761,2647.8,2647.6,0.99034948]
[1727413680804,0.37761,2647.8,2647.7,0.99034948]
[1727413681205,0.37761,2647.8,2647.6,0.99034948]
[1727413681509,0.37761,2647.8,2647.7,0.99034948]
[1727413684514,0.37762,2647.7,2647.6,3.2078]